[Event "Titled Tuesday Blitz October 11 Early 2022"]
[White "Aldokhin, Ivan"]
[Black "Hambleton, Aman"]
[WhiteFideId "24115720"]
[BlackFideId "2606577"]
[WhiteElo "2313"]
[BlackElo "2538"]
[Result "1-0"]
[Round "11"]
[TimeControl "180+1"]
[Date "2022.10.11"]
[WhiteClock "0:00:57"]
[BlackClock "0:00:01"]

1. e4 {[%clk 0:02:59]}  c5 {[%clk 0:02:55]} 2. Nf3 {[%clk 0:03:00]}  e6 {[%clk 0:02:56]} 3. d4 {[%clk 0:03:01]}  cxd4 {[%clk 0:02:56]} 4. Nxd4 {[%clk 0:03:01]}  Nc6 {[%clk 0:02:56]} 5. Nc3 {[%clk 0:03:01]}  Qc7 {[%clk 0:02:56]} 6. Nxc6 {[%clk 0:03:00]}  bxc6 {[%clk 0:02:57]} 7. Bd3 {[%clk 0:02:58]}  d5 {[%clk 0:02:56]} 8. Qe2 {[%clk 0:02:58]}  Nf6 {[%clk 0:02:43]} 9. Bg5 {[%clk 0:02:58]}  Be7 {[%clk 0:02:42]} 10. e5 {[%clk 0:02:44]}  Nd7 {[%clk 0:02:08]} 11. Bxe7 {[%clk 0:02:40]}  Kxe7 {[%clk 0:02:09]} 12. f4 {[%clk 0:02:40]}  Qb6 {[%clk 0:02:10]} 13. O-O-O {[%clk 0:02:27]}  Rb8 {[%clk 0:02:08]} 14. b3 {[%clk 0:02:27]}  Qd4 {[%clk 0:01:52]} 15. Qd2 {[%clk 0:02:14]}  Nc5 {[%clk 0:01:29]} 16. Kb1 {[%clk 0:02:10]}  Nxd3 {[%clk 0:00:47]} 17. cxd3 {[%clk 0:02:08]}  Ba6 {[%clk 0:00:47]} 18. f5 {[%clk 0:01:59]}  exf5 {[%clk 0:00:13]} 19. Ne2 {[%clk 0:01:45]}  Qg4 {[%clk 0:00:07]} 20. h3 {[%clk 0:01:31]}  Qh4 {[%clk 0:00:07]} 21. g3 {[%clk 0:01:23]}  Qh6 {[%clk 0:00:06]} 22. Nf4 {[%clk 0:01:18]}  Rhc8 {[%clk 0:00:04]} 23. Qa5 {[%clk 0:01:09]}  Rb6 {[%clk 0:00:04]} 24. Qc5+ {[%clk 0:01:08]}  Ke8 {[%clk 0:00:03]} 25. e6 {[%clk 0:01:06]}  g5 {[%clk 0:00:03]} 26. Qd6 {[%clk 0:01:01]}  Rb7 {[%clk 0:00:03]} 27. exf7+ {[%clk 0:01:01]}  Kxf7 {[%clk 0:00:03]} 28. Qxh6 {[%clk 0:01:01]}  gxf4 {[%clk 0:00:03]} 29. gxf4 {[%clk 0:00:57]}  Rg8 {[%clk 0:00:02]} 30. Rhg1 {[%clk 0:00:57]}  Rxg1 {[%clk 0:00:01]} 31. Rxg1 {[%clk 0:00:57]} 1-0


[Site "https://www.chess.com"]

[Event "Titled Tuesday Blitz October 11 Early 2022"]
[White "Andreikin, Dmitry"]
[Black "Papasimakopoulos, Alexandros"]
[WhiteFideId "4158814"]
[BlackFideId "4244125"]
[WhiteElo "2736"]
[BlackElo "2357"]
[Result "1/2-1/2"]
[Round "11"]
[TimeControl "180+1"]
[Date "2022.10.11"]
[WhiteClock "0:00:05"]
[BlackClock "0:00:20"]

1. Nf3 {[%clk 0:03:00]}  Nf6 {[%clk 0:02:56]} 2. g3 {[%clk 0:03:01]}  b6 {[%clk 0:02:56]} 3. Bg2 {[%clk 0:03:01]}  Bb7 {[%clk 0:02:56]} 4. d4 {[%clk 0:03:00]}  e6 {[%clk 0:02:57]} 5. O-O {[%clk 0:03:00]}  c5 {[%clk 0:02:54]} 6. c4 {[%clk 0:02:52]}  cxd4 {[%clk 0:02:52]} 7. Qxd4 {[%clk 0:02:53]}  Be7 {[%clk 0:02:49]} 8. Nc3 {[%clk 0:02:52]}  O-O {[%clk 0:02:43]} 9. Rd1 {[%clk 0:02:52]}  d6 {[%clk 0:02:40]} 10. b3 {[%clk 0:02:46]}  a6 {[%clk 0:02:30]} 11. Ba3 {[%clk 0:02:41]}  d5 {[%clk 0:02:20]} 12. Bxe7 {[%clk 0:02:35]}  Qxe7 {[%clk 0:02:21]} 13. Qxb6 {[%clk 0:02:22]}  dxc4 {[%clk 0:02:20]} 14. bxc4 {[%clk 0:02:22]}  Ne4 {[%clk 0:02:17]} 15. Nxe4 {[%clk 0:01:59]}  Bxe4 {[%clk 0:02:16]} 16. Ne5 {[%clk 0:01:58]}  Bxg2 {[%clk 0:02:13]} 17. Kxg2 {[%clk 0:01:59]}  f6 {[%clk 0:02:09]} 18. Nf3 {[%clk 0:01:41]}  Ra7 {[%clk 0:02:08]} 19. Rab1 {[%clk 0:01:36]}  e5 {[%clk 0:01:56]} 20. Rd5 {[%clk 0:01:25]}  Rc7 {[%clk 0:01:45]} 21. Nd2 {[%clk 0:01:23]}  Rfc8 {[%clk 0:01:43]} 22. Ne4 {[%clk 0:01:17]}  Nd7 {[%clk 0:01:32]} 23. Qxa6 {[%clk 0:01:13]}  Nc5 {[%clk 0:01:12]} 24. Nxc5 {[%clk 0:01:11]}  Rxc5 {[%clk 0:01:13]} 25. Rb7 {[%clk 0:01:09]}  R5c7 {[%clk 0:01:03]} 26. Rxc7 {[%clk 0:00:56]}  Rxc7 {[%clk 0:01:04]} 27. Qb5 {[%clk 0:00:52]}  Kf7 {[%clk 0:01:03]} 28. c5 {[%clk 0:00:49]}  Qe6 {[%clk 0:01:00]} 29. e4 {[%clk 0:00:48]}  Qc6 {[%clk 0:00:58]} 30. Qb6 {[%clk 0:00:36]}  Kg6 {[%clk 0:00:53]} 31. h4 {[%clk 0:00:32]}  h5 {[%clk 0:00:52]} 32. Kh2 {[%clk 0:00:19]}  Rc8 {[%clk 0:00:52]} 33. Qxc6 {[%clk 0:00:18]}  Rxc6 {[%clk 0:00:52]} 34. Kg2 {[%clk 0:00:18]}  Kf7 {[%clk 0:00:51]} 35. Rd7+ {[%clk 0:00:18]}  Kf8 {[%clk 0:00:46]} 36. Rd5 {[%clk 0:00:18]}  Ke7 {[%clk 0:00:45]} 37. f4 {[%clk 0:00:16]}  exf4 {[%clk 0:00:40]} 38. gxf4 {[%clk 0:00:17]}  Ra6 {[%clk 0:00:40]} 39. Rd2 {[%clk 0:00:12]}  Ra3 {[%clk 0:00:39]} 40. Rc2 {[%clk 0:00:09]}  Kd7 {[%clk 0:00:39]} 41. c6+ {[%clk 0:00:09]}  Kc7 {[%clk 0:00:40]} 42. e5 {[%clk 0:00:07]}  fxe5 {[%clk 0:00:40]} 43. fxe5 {[%clk 0:00:08]}  Re3 {[%clk 0:00:38]} 44. Rc5 {[%clk 0:00:08]}  Re2+ {[%clk 0:00:39]} 45. Kf3 {[%clk 0:00:09]}  Rxa2 {[%clk 0:00:39]} 46. e6 {[%clk 0:00:08]}  Ra8 {[%clk 0:00:22]} 47. Kf4 {[%clk 0:00:09]}  Kd6 {[%clk 0:00:22]} 48. Re5 {[%clk 0:00:09]}  Kxc6 {[%clk 0:00:19]} 49. Kg5 {[%clk 0:00:09]}  Kd6 {[%clk 0:00:19]} 50. Re1 {[%clk 0:00:08]}  Ke7 {[%clk 0:00:19]} 51. Kxh5 {[%clk 0:00:07]}  Ra4 {[%clk 0:00:20]} 52. Kg5 {[%clk 0:00:07]}  Rd4 {[%clk 0:00:20]} 53. h5 {[%clk 0:00:07]}  Rd2 {[%clk 0:00:20]} 54. Re4 {[%clk 0:00:06]}  Rg2+ {[%clk 0:00:20]} 55. Kf5 {[%clk 0:00:07]}  Rh2 {[%clk 0:00:19]} 56. Kg6 {[%clk 0:00:06]}  Rg2+ {[%clk 0:00:20]} 57. Kh7 {[%clk 0:00:06]}  Rg5 {[%clk 0:00:19]} 58. Rh4 {[%clk 0:00:04]}  Kxe6 {[%clk 0:00:19]} 59. Rh1 {[%clk 0:00:03]}  Kf7 {[%clk 0:00:18]} 60. Rf1+ {[%clk 0:00:03]}  Ke7 {[%clk 0:00:19]} 61. Rh1 {[%clk 0:00:03]}  Kf7 {[%clk 0:00:19]} 62. Rf1+ {[%clk 0:00:03]}  Ke6 {[%clk 0:00:20]} 63. Rh1 {[%clk 0:00:04]}  Kf6 {[%clk 0:00:20]} 64. h6 {[%clk 0:00:04]}  gxh6 {[%clk 0:00:20]} 65. Rxh6+ {[%clk 0:00:04]}  Kf7 {[%clk 0:00:21]} 66. Rh1 {[%clk 0:00:05]}  Rf5 {[%clk 0:00:19]} 67. Kh6 {[%clk 0:00:04]}  Kf6 {[%clk 0:00:19]} 68. Ra1 {[%clk 0:00:04]}  Re5 {[%clk 0:00:19]} 69. Ra6+ {[%clk 0:00:05]}  Re6 {[%clk 0:00:19]} 70. Rxe6+ {[%clk 0:00:05]}  Kxe6 {[%clk 0:00:20]} 1/2-1/2


[Site "https://www.chess.com"]

[Event "Titled Tuesday Blitz October 11 Early 2022"]
[White "Ardila, Oscar Humberto"]
[Black "Rodriguez Santiago, Jaime"]
[WhiteFideId "4404742"]
[BlackFideId "3100898"]
[WhiteElo "1898"]
[BlackElo "2025"]
[Result "1-0"]
[Round "11"]
[TimeControl "180+1"]
[Date "2022.10.12"]
[WhiteClock "0:00:05"]
[BlackClock "0:00:14"]

1. d4 {[%clk 0:02:54]}  d5 {[%clk 0:02:57]} 2. c4 {[%clk 0:02:54]}  c6 {[%clk 0:02:56]} 3. Nc3 {[%clk 0:02:49]}  Nf6 {[%clk 0:02:56]} 4. Nf3 {[%clk 0:02:49]}  e6 {[%clk 0:02:55]} 5. Bg5 {[%clk 0:02:44]}  Nbd7 {[%clk 0:02:55]} 6. e3 {[%clk 0:02:44]}  Qa5 {[%clk 0:02:54]} 7. Bxf6 {[%clk 0:02:43]}  Nxf6 {[%clk 0:02:54]} 8. Qc2 {[%clk 0:02:43]}  Bb4 {[%clk 0:02:53]} 9. Nd2 {[%clk 0:02:43]}  O-O {[%clk 0:02:52]} 10. Bd3 {[%clk 0:02:43]}  dxc4 {[%clk 0:02:52]} 11. Bxc4 {[%clk 0:02:43]}  Re8 {[%clk 0:02:46]} 12. O-O {[%clk 0:02:42]}  b5 {[%clk 0:02:44]} 13. Be2 {[%clk 0:02:40]}  Bb7 {[%clk 0:02:44]} 14. Bf3 {[%clk 0:02:38]}  a6 {[%clk 0:02:43]} 15. Nb3 {[%clk 0:02:27]}  Qd8 {[%clk 0:02:39]} 16. a3 {[%clk 0:02:27]}  Bf8 {[%clk 0:02:37]} 17. Ne4 {[%clk 0:02:22]}  Nxe4 {[%clk 0:02:36]} 18. Bxe4 {[%clk 0:02:22]}  g6 {[%clk 0:02:27]} 19. Rac1 {[%clk 0:02:20]}  Rc8 {[%clk 0:02:14]} 20. Nc5 {[%clk 0:02:16]}  Bxc5 {[%clk 0:02:13]} 21. Qxc5 {[%clk 0:02:16]}  Qf6 {[%clk 0:02:07]} 22. Qb6 {[%clk 0:02:06]}  Re7 {[%clk 0:02:07]} 23. Bf3 {[%clk 0:01:59]}  e5 {[%clk 0:02:06]} 24. Rfd1 {[%clk 0:01:55]}  exd4 {[%clk 0:02:05]} 25. Rxd4 {[%clk 0:01:55]}  Kg7 {[%clk 0:02:01]} 26. Rc5 {[%clk 0:01:42]}  h6 {[%clk 0:01:45]} 27. h3 {[%clk 0:01:41]}  Rec7 {[%clk 0:01:38]} 28. b4 {[%clk 0:01:37]}  Qe7 {[%clk 0:01:37]} 29. Rc1 {[%clk 0:01:31]}  c5 {[%clk 0:01:30]} 30. bxc5 {[%clk 0:01:10]}  Bxf3 {[%clk 0:01:29]} 31. gxf3 {[%clk 0:01:10]}  Rxc5 {[%clk 0:01:28]} 32. Rxc5 {[%clk 0:01:09]}  Rxc5 {[%clk 0:01:21]} 33. Qxa6 {[%clk 0:01:02]}  Rc1+ {[%clk 0:01:20]} 34. Kg2 {[%clk 0:01:01]}  Qg5+ {[%clk 0:01:07]} 35. Rg4 {[%clk 0:01:01]}  Qd5 {[%clk 0:01:07]} 36. Qb6 {[%clk 0:00:52]}  Rd1 {[%clk 0:01:02]} 37. a4 {[%clk 0:00:38]}  bxa4 {[%clk 0:00:52]} 38. Rxa4 {[%clk 0:00:35]}  Qa2 {[%clk 0:00:49]} 39. Rd4 {[%clk 0:00:29]}  Rxd4 {[%clk 0:00:46]} 40. Qxd4+ {[%clk 0:00:29]}  Kh7 {[%clk 0:00:45]} 41. Qf6 {[%clk 0:00:28]}  Qb3 {[%clk 0:00:44]} 42. h4 {[%clk 0:00:27]}  h5 {[%clk 0:00:44]} 43. Kg3 {[%clk 0:00:26]}  Qc4 {[%clk 0:00:44]} 44. e4 {[%clk 0:00:25]}  Qa2 {[%clk 0:00:43]} 45. f4 {[%clk 0:00:23]}  Qb3+ {[%clk 0:00:42]} 46. f3 {[%clk 0:00:23]}  Qc4 {[%clk 0:00:39]} 47. f5 {[%clk 0:00:22]}  gxf5 {[%clk 0:00:38]} 48. Qxf5+ {[%clk 0:00:22]}  Kh6 {[%clk 0:00:38]} 49. Qg5+ {[%clk 0:00:22]}  Kh7 {[%clk 0:00:37]} 50. Qxh5+ {[%clk 0:00:22]}  Kg7 {[%clk 0:00:38]} 51. Qg5+ {[%clk 0:00:23]}  Kh7 {[%clk 0:00:37]} 52. Qf5+ {[%clk 0:00:21]}  Kg7 {[%clk 0:00:37]} 53. Qe5+ {[%clk 0:00:20]}  Kh7 {[%clk 0:00:36]} 54. h5 {[%clk 0:00:19]}  Qf1 {[%clk 0:00:35]} 55. Qf5+ {[%clk 0:00:19]}  Kg7 {[%clk 0:00:33]} 56. Kf4 {[%clk 0:00:20]}  Qc1+ {[%clk 0:00:32]} 57. Kg4 {[%clk 0:00:17]}  Qg1+ {[%clk 0:00:32]} 58. Kh3 {[%clk 0:00:16]}  Qh1+ {[%clk 0:00:31]} 59. Kg3 {[%clk 0:00:16]}  Qg1+ {[%clk 0:00:31]} 60. Kf4 {[%clk 0:00:17]}  Qh2+ {[%clk 0:00:31]} 61. Ke3 {[%clk 0:00:17]}  Qg1+ {[%clk 0:00:30]} 62. Ke2 {[%clk 0:00:17]}  Qg2+ {[%clk 0:00:30]} 63. Kd3 {[%clk 0:00:17]}  Qf1+ {[%clk 0:00:30]} 64. Kd4 {[%clk 0:00:17]}  Qa1+ {[%clk 0:00:29]} 65. Kd5 {[%clk 0:00:17]}  Qa5+ {[%clk 0:00:29]} 66. Kd6 {[%clk 0:00:16]}  Qb6+ {[%clk 0:00:29]} 67. Ke5 {[%clk 0:00:15]}  Qc5+ {[%clk 0:00:27]} 68. Kf4 {[%clk 0:00:15]}  Qc1+ {[%clk 0:00:27]} 69. Ke5 {[%clk 0:00:13]}  Qa1+ {[%clk 0:00:27]} 70. Kd6 {[%clk 0:00:12]}  Qa6+ {[%clk 0:00:26]} 71. Ke7 {[%clk 0:00:12]}  Qb7+ {[%clk 0:00:23]} 72. Qd7 {[%clk 0:00:11]}  Qb4+ {[%clk 0:00:20]} 73. Ke8 {[%clk 0:00:11]}  Qb8+ {[%clk 0:00:19]} 74. Qd8 {[%clk 0:00:09]}  Qe5+ {[%clk 0:00:20]} 75. Qe7 {[%clk 0:00:09]}  Qb8+ {[%clk 0:00:19]} 76. Kd7 {[%clk 0:00:09]}  Qb5+ {[%clk 0:00:20]} 77. Kc8 {[%clk 0:00:06]}  Qc6+ {[%clk 0:00:19]} 78. Qc7 {[%clk 0:00:06]}  Qe8+ {[%clk 0:00:19]} 79. Kb7 {[%clk 0:00:06]}  Qb5+ {[%clk 0:00:19]} 80. Qb6 {[%clk 0:00:07]}  Qd7+ {[%clk 0:00:19]} 81. Ka6 {[%clk 0:00:04]}  Qa4+ {[%clk 0:00:18]} 82. Qa5 {[%clk 0:00:04]}  Qc6+ {[%clk 0:00:18]} 83. Qb6 {[%clk 0:00:05]}  Qc4+ {[%clk 0:00:19]} 84. Ka7 {[%clk 0:00:04]}  Qa2+ {[%clk 0:00:19]} 85. Kb7 {[%clk 0:00:04]}  Qf2 {[%clk 0:00:17]} 86. Qxf2 {[%clk 0:00:03]}  Kh6 {[%clk 0:00:12]} 87. Qg3 {[%clk 0:00:04]}  Kxh5 {[%clk 0:00:13]} 88. Qf4 {[%clk 0:00:04]}  f6 {[%clk 0:00:14]} 89. Qf5+ {[%clk 0:00:05]} 1-0


[Site "https://www.chess.com"]

[Event "Titled Tuesday Blitz October 11 Early 2022"]
[White "Begunov, Konstantin"]
[Black "Ciuffoletti, Paolo"]
[WhiteFideId "4118510"]
[BlackFideId "807630"]
[WhiteElo "2225"]
[BlackElo "2143"]
[Result "0-1"]
[Round "11"]
[TimeControl "180+1"]
[Date "2022.10.12"]
[WhiteClock "0:00:08"]
[BlackClock "0:00:22"]

1. d4 {[%clk 0:02:55]}  d5 {[%clk 0:02:59]} 2. c4 {[%clk 0:02:54]}  c6 {[%clk 0:02:58]} 3. Nc3 {[%clk 0:02:54]}  Nf6 {[%clk 0:02:58]} 4. Nf3 {[%clk 0:02:54]}  dxc4 {[%clk 0:02:58]} 5. a4 {[%clk 0:02:54]}  e6 {[%clk 0:02:56]} 6. e4 {[%clk 0:02:47]}  Bb4 {[%clk 0:02:51]} 7. e5 {[%clk 0:02:47]}  Nd5 {[%clk 0:02:39]} 8. Bd2 {[%clk 0:02:47]}  Bxc3 {[%clk 0:02:35]} 9. bxc3 {[%clk 0:02:46]}  b5 {[%clk 0:02:35]} 10. Ng5 {[%clk 0:02:39]}  O-O {[%clk 0:02:19]} 11. Qb1 {[%clk 0:02:18]}  f5 {[%clk 0:02:07]} 12. exf6 {[%clk 0:02:12]}  Nxf6 {[%clk 0:02:06]} 13. axb5 {[%clk 0:02:11]}  h6 {[%clk 0:01:54]} 14. Nf3 {[%clk 0:01:59]}  cxb5 {[%clk 0:01:37]} 15. Qxb5 {[%clk 0:01:59]}  Qd5 {[%clk 0:01:33]} 16. Bxc4 {[%clk 0:01:51]}  Qe4+ {[%clk 0:01:07]} 17. Kf1 {[%clk 0:01:29]}  Bd7 {[%clk 0:01:01]} 18. Qe5 {[%clk 0:01:05]}  Qc6 {[%clk 0:00:43]} 19. Bb3 {[%clk 0:00:51]}  Nd5 {[%clk 0:00:40]} 20. c4 {[%clk 0:00:46]}  Nb6 {[%clk 0:00:35]} 21. d5 {[%clk 0:00:42]}  exd5 {[%clk 0:00:34]} 22. cxd5 {[%clk 0:00:43]}  Qb5+ {[%clk 0:00:32]} 23. Kg1 {[%clk 0:00:32]}  Qxb3 {[%clk 0:00:32]} 24. Bc3 {[%clk 0:00:28]}  Rf7 {[%clk 0:00:29]} 25. h4 {[%clk 0:00:22]}  Qxd5 {[%clk 0:00:28]} 26. Qc7 {[%clk 0:00:18]}  Nc6 {[%clk 0:00:24]} 27. Rh3 {[%clk 0:00:13]}  Bxh3 {[%clk 0:00:23]} 28. Ne5 {[%clk 0:00:08]}  Qxg2# {[%clk 0:00:22]} 0-1


[Site "https://www.chess.com"]

[Event "Titled Tuesday Blitz October 11 Early 2022"]
[White "Clawitter, Craig"]
[Black "Omariev, Maksim"]
[WhiteFideId "2023105"]
[BlackFideId "4193423"]
[WhiteElo "2281"]
[BlackElo "2404"]
[Result "0-1"]
[Round "11"]
[TimeControl "180+1"]
[Date "2022.10.12"]
[WhiteClock "0:00:01"]
[BlackClock "0:01:02"]

1. e4 {[%clk 0:02:56]}  h5 {[%clk 0:03:00]} 2. d4 {[%clk 0:02:52]}  h4 {[%clk 0:03:01]} 3. h3 {[%clk 0:02:51]}  c6 {[%clk 0:03:01]} 4. Nf3 {[%clk 0:02:51]}  d5 {[%clk 0:03:02]} 5. e5 {[%clk 0:02:50]}  Bf5 {[%clk 0:02:58]} 6. c4 {[%clk 0:02:50]}  e6 {[%clk 0:02:57]} 7. Nc3 {[%clk 0:02:50]}  dxc4 {[%clk 0:02:56]} 8. Bxc4 {[%clk 0:02:48]}  Nd7 {[%clk 0:02:56]} 9. Qe2 {[%clk 0:02:31]}  Be7 {[%clk 0:02:53]} 10. Bf4 {[%clk 0:02:29]}  Nh6 {[%clk 0:02:52]} 11. O-O {[%clk 0:02:25]}  Nb6 {[%clk 0:02:53]} 12. Bb3 {[%clk 0:02:24]}  Bg6 {[%clk 0:02:48]} 13. Rfd1 {[%clk 0:02:17]}  Bh5 {[%clk 0:02:43]} 14. Ne4 {[%clk 0:02:11]}  Nf5 {[%clk 0:02:42]} 15. Rac1 {[%clk 0:01:39]}  Nd5 {[%clk 0:02:30]} 16. Bh2 {[%clk 0:01:22]}  g5 {[%clk 0:02:31]} 17. Qd3 {[%clk 0:01:07]}  g4 {[%clk 0:02:30]} 18. hxg4 {[%clk 0:01:04]}  Bxg4 {[%clk 0:02:31]} 19. Nc3 {[%clk 0:00:52]}  h3 {[%clk 0:02:13]} 20. Qe4 {[%clk 0:00:47]}  Rg8 {[%clk 0:02:07]} 21. Rd3 {[%clk 0:00:36]}  hxg2 {[%clk 0:02:00]} 22. Nxd5 {[%clk 0:00:27]}  exd5 {[%clk 0:01:58]} 23. Qf4 {[%clk 0:00:24]}  Qd7 {[%clk 0:01:56]} 24. e6 {[%clk 0:00:21]}  Qxe6 {[%clk 0:01:55]} 25. Re1 {[%clk 0:00:20]}  Qf6 {[%clk 0:01:53]} 26. Qc7 {[%clk 0:00:14]}  Kf8 {[%clk 0:01:31]} 27. Ne5 {[%clk 0:00:13]}  Qh4 {[%clk 0:01:11]} 28. Rg3 {[%clk 0:00:04]}  Re8 {[%clk 0:01:05]} 29. Rxg4 {[%clk 0:00:02]}  Rxg4 {[%clk 0:01:02]} 30. Nxg4 {[%clk 0:00:01]}  Qxg4 {[%clk 0:01:02]} 0-1


[Site "https://www.chess.com"]

[Event "Titled Tuesday Blitz October 11 Early 2022"]
[White "Dehtiarov, Roman"]
[Black "Mikhailovsky, Vladimir"]
[WhiteFideId "14186640"]
[BlackFideId "34105414"]
[WhiteElo "2200"]
[BlackElo "2297"]
[Result "1-0"]
[Round "11"]
[TimeControl "180+1"]
[Date "2022.10.12"]
[WhiteClock "0:00:05"]
[BlackClock "0:00:02"]

1. e4 {[%clk 0:03:00]}  e5 {[%clk 0:02:58]} 2. Nf3 {[%clk 0:01:39]}  d5 {[%clk 0:02:41]} 3. Nxe5 {[%clk 0:01:36]}  Bd6 {[%clk 0:02:41]} 4. d4 {[%clk 0:01:33]}  dxe4 {[%clk 0:02:41]} 5. Nc4 {[%clk 0:01:33]}  Nf6 {[%clk 0:02:41]} 6. Nc3 {[%clk 0:01:33]}  O-O {[%clk 0:02:41]} 7. Be3 {[%clk 0:01:32]}  Re8 {[%clk 0:02:41]} 8. Be2 {[%clk 0:01:32]}  Nc6 {[%clk 0:02:41]} 9. Qd2 {[%clk 0:01:31]}  Nb4 {[%clk 0:02:09]} 10. a3 {[%clk 0:01:27]}  Nbd5 {[%clk 0:02:09]} 11. Nxd5 {[%clk 0:01:26]}  Nxd5 {[%clk 0:02:09]} 12. Nxd6 {[%clk 0:01:27]}  Qxd6 {[%clk 0:02:09]} 13. c4 {[%clk 0:01:27]}  Nxe3 {[%clk 0:02:09]} 14. fxe3 {[%clk 0:01:28]}  c5 {[%clk 0:02:04]} 15. d5 {[%clk 0:01:28]}  Re5 {[%clk 0:01:59]} 16. O-O-O {[%clk 0:01:27]}  Bd7 {[%clk 0:01:58]} 17. Rhf1 {[%clk 0:01:25]}  a6 {[%clk 0:01:56]} 18. Rf4 {[%clk 0:01:18]}  b5 {[%clk 0:01:55]} 19. Rdf1 {[%clk 0:01:18]}  f6 {[%clk 0:01:43]} 20. Qc2 {[%clk 0:01:08]}  Rae8 {[%clk 0:01:40]} 21. g4 {[%clk 0:01:04]}  bxc4 {[%clk 0:01:39]} 22. Bxc4 {[%clk 0:01:05]}  Bb5 {[%clk 0:01:40]} 23. b3 {[%clk 0:01:00]}  Bd7 {[%clk 0:01:19]} 24. h3 {[%clk 0:00:56]}  a5 {[%clk 0:01:19]} 25. a4 {[%clk 0:00:55]}  h5 {[%clk 0:01:17]} 26. Qc3 {[%clk 0:00:51]}  Qb6 {[%clk 0:01:06]} 27. gxh5 {[%clk 0:00:42]}  Rxh5 {[%clk 0:00:35]} 28. d6+ {[%clk 0:00:41]}  Kh7 {[%clk 0:00:28]} 29. Rxf6 {[%clk 0:00:24]}  Ree5 {[%clk 0:00:16]} 30. Rf7 {[%clk 0:00:18]}  Qxd6 {[%clk 0:00:15]} 31. Rd1 {[%clk 0:00:17]}  Qg6 {[%clk 0:00:09]} 32. Rdxd7 {[%clk 0:00:15]}  Qg1+ {[%clk 0:00:05]} 33. Kb2 {[%clk 0:00:14]}  Rhg5 {[%clk 0:00:06]} 34. Rxg7+ {[%clk 0:00:07]}  Rxg7 {[%clk 0:00:06]} 35. Qxe5 {[%clk 0:00:07]}  Qf2+ {[%clk 0:00:02]} 36. Ka3 {[%clk 0:00:07]}  Rxd7 {[%clk 0:00:03]} 37. Qxe4+ {[%clk 0:00:06]}  Kg7 {[%clk 0:00:02]} 38. Qg4+ {[%clk 0:00:05]} 1-0


[Site "https://www.chess.com"]

[Event "Titled Tuesday Blitz October 11 Early 2022"]
[White "Di Nicolantonio, Lucas"]
[Black "Urazayev, Arystanbek"]
[WhiteFideId "680460"]
[BlackFideId "13709810"]
[WhiteElo "2381"]
[BlackElo "2441"]
[Result "0-1"]
[Round "11"]
[TimeControl "180+1"]
[Date "2022.10.11"]
[WhiteClock "0:00:49"]
[BlackClock "0:01:29"]

1. Nf3 {[%clk 0:03:00]}  d5 {[%clk 0:03:00]} 2. e3 {[%clk 0:03:00]}  c5 {[%clk 0:03:00]} 3. b3 {[%clk 0:03:01]}  Nf6 {[%clk 0:02:59]} 4. Bb2 {[%clk 0:03:01]}  e6 {[%clk 0:02:59]} 5. c4 {[%clk 0:02:57]}  Be7 {[%clk 0:02:59]} 6. cxd5 {[%clk 0:02:55]}  exd5 {[%clk 0:02:59]} 7. d4 {[%clk 0:02:55]}  O-O {[%clk 0:03:00]} 8. Be2 {[%clk 0:02:54]}  Nc6 {[%clk 0:03:00]} 9. O-O {[%clk 0:02:54]}  Re8 {[%clk 0:03:00]} 10. Nc3 {[%clk 0:02:49]}  Ne4 {[%clk 0:02:58]} 11. dxc5 {[%clk 0:02:46]}  Bf6 {[%clk 0:02:47]} 12. Qc1 {[%clk 0:02:27]}  Nxc3 {[%clk 0:01:50]} 13. Bxc3 {[%clk 0:02:26]}  d4 {[%clk 0:01:50]} 14. Rd1 {[%clk 0:02:14]}  dxc3 {[%clk 0:01:45]} 15. Rxd8 {[%clk 0:02:15]}  Rxd8 {[%clk 0:01:46]} 16. a3 {[%clk 0:02:01]}  Be6 {[%clk 0:01:40]} 17. b4 {[%clk 0:01:51]}  c2 {[%clk 0:01:34]} 18. h3 {[%clk 0:01:29]}  Bxa1 {[%clk 0:01:33]} 19. Qxa1 {[%clk 0:01:29]}  Bc4 {[%clk 0:01:33]} 20. Qc3 {[%clk 0:00:50]}  Rd1+ {[%clk 0:01:30]} 21. Kh2 {[%clk 0:00:49]}  c1=Q {[%clk 0:01:29]} 0-1


[Site "https://www.chess.com"]

[Event "Titled Tuesday Blitz October 11 Early 2022"]
[White "Donchenko, Alexander"]
[Black "Zhao, Jun"]
[WhiteFideId "24603295"]
[BlackFideId "8602522"]
[WhiteElo "2572"]
[BlackElo "2547"]
[Result "1-0"]
[Round "11"]
[TimeControl "180+1"]
[Date "2022.10.11"]
[WhiteClock "0:01:18"]
[BlackClock "0:00:02"]

1. Nf3 {[%clk 0:03:00]}  d5 {[%clk 0:02:58]} 2. g3 {[%clk 0:03:01]}  Bg4 {[%clk 0:02:58]} 3. Bg2 {[%clk 0:03:01]}  c6 {[%clk 0:02:59]} 4. h3 {[%clk 0:03:02]}  Bh5 {[%clk 0:02:57]} 5. O-O {[%clk 0:03:02]}  Nd7 {[%clk 0:02:57]} 6. d4 {[%clk 0:03:02]}  e6 {[%clk 0:02:56]} 7. c4 {[%clk 0:03:03]}  Ngf6 {[%clk 0:02:55]} 8. cxd5 {[%clk 0:03:01]}  exd5 {[%clk 0:02:52]} 9. Nh4 {[%clk 0:03:01]}  Bg6 {[%clk 0:02:44]} 10. Nc3 {[%clk 0:03:01]}  Be7 {[%clk 0:02:41]} 11. Nxg6 {[%clk 0:02:59]}  hxg6 {[%clk 0:02:41]} 12. Rb1 {[%clk 0:03:00]}  a5 {[%clk 0:02:40]} 13. a3 {[%clk 0:02:59]}  Nb6 {[%clk 0:02:38]} 14. Na4 {[%clk 0:02:53]}  O-O {[%clk 0:02:35]} 15. Bf4 {[%clk 0:02:50]}  Nfd7 {[%clk 0:02:28]} 16. Qc2 {[%clk 0:02:45]}  Nxa4 {[%clk 0:02:28]} 17. Qxa4 {[%clk 0:02:45]}  Nb6 {[%clk 0:02:27]} 18. Qc2 {[%clk 0:02:39]}  a4 {[%clk 0:02:25]} 19. h4 {[%clk 0:02:26]}  Re8 {[%clk 0:02:22]} 20. e3 {[%clk 0:02:25]}  Nc4 {[%clk 0:02:04]} 21. Rfe1 {[%clk 0:02:19]}  b5 {[%clk 0:02:01]} 22. e4 {[%clk 0:02:17]}  Qd7 {[%clk 0:01:52]} 23. Rbd1 {[%clk 0:02:14]}  b4 {[%clk 0:01:48]} 24. axb4 {[%clk 0:02:10]}  Bxb4 {[%clk 0:01:49]} 25. Re2 {[%clk 0:02:10]}  Bf8 {[%clk 0:01:26]} 26. Ra1 {[%clk 0:02:05]}  a3 {[%clk 0:01:25]} 27. bxa3 {[%clk 0:02:04]}  Rxa3 {[%clk 0:01:25]} 28. Rxa3 {[%clk 0:02:03]}  Nxa3 {[%clk 0:01:26]} 29. Qd3 {[%clk 0:02:02]}  dxe4 {[%clk 0:01:24]} 30. Rxe4 {[%clk 0:01:59]}  Rd8 {[%clk 0:00:59]} 31. Bg5 {[%clk 0:01:59]}  Rb8 {[%clk 0:00:58]} 32. Re1 {[%clk 0:01:54]}  Nb5 {[%clk 0:00:56]} 33. d5 {[%clk 0:01:54]}  cxd5 {[%clk 0:00:55]} 34. Rb1 {[%clk 0:01:46]}  Bd6 {[%clk 0:00:18]} 35. Qxd5 {[%clk 0:01:37]}  Qe8 {[%clk 0:00:11]} 36. Rxb5 {[%clk 0:01:34]}  Qxb5 {[%clk 0:00:10]} 37. Qxd6 {[%clk 0:01:33]}  Re8 {[%clk 0:00:10]} 38. Be3 {[%clk 0:01:30]}  Qe5 {[%clk 0:00:10]} 39. Qxe5 {[%clk 0:01:27]}  Rxe5 {[%clk 0:00:10]} 40. Bf3 {[%clk 0:01:27]}  Ra5 {[%clk 0:00:10]} 41. Kg2 {[%clk 0:01:28]}  Rb5 {[%clk 0:00:11]} 42. Be2 {[%clk 0:01:28]}  Rd5 {[%clk 0:00:10]} 43. Bc4 {[%clk 0:01:28]}  Re5 {[%clk 0:00:10]} 44. Kf3 {[%clk 0:01:28]}  Rf5+ {[%clk 0:00:10]} 45. Ke4 {[%clk 0:01:28]}  Ra5 {[%clk 0:00:10]} 46. Bd5 {[%clk 0:01:28]}  Ra4+ {[%clk 0:00:10]} 47. Ke5 {[%clk 0:01:28]}  Ra5 {[%clk 0:00:10]} 48. Kd6 {[%clk 0:01:28]}  Ra6+ {[%clk 0:00:11]} 49. Ke7 {[%clk 0:01:29]}  Rf6 {[%clk 0:00:07]} 50. f4 {[%clk 0:01:26]}  Rf5 {[%clk 0:00:07]} 51. Bc4 {[%clk 0:01:27]}  Rf6 {[%clk 0:00:05]} 52. Bd4 {[%clk 0:01:25]}  Rf5 {[%clk 0:00:05]} 53. Be5 {[%clk 0:01:25]}  Kh7 {[%clk 0:00:02]} 54. Bxf7 {[%clk 0:01:23]}  Rh5 {[%clk 0:00:02]} 55. Be6 {[%clk 0:01:19]}  Kh8 {[%clk 0:00:01]} 56. Kf7 {[%clk 0:01:18]}  Kh7 {[%clk 0:00:02]} 57. Bg4 {[%clk 0:01:18]} 1-0


[Site "https://www.chess.com"]